bitfinex/quotes_ETHUSD_20260227
["timestamp","ask_amount","ask_price","bid_price","bid_amount"]
[1772153818899,2.99343615,2015.5,2015.1,0.45975969]
[1772153820617,3.49342955,2015.5,2015.1,0.45975969]
[1772153821215,0.4999934,2015.1,2014.7,0.28212655]
[1772153821518,0.4999934,2014.9,2014.6,0.0011]
[1772153822522,1.2404879,2015.4,2014.8,0.28212655]
[1772153822816,0.001,2015.6,2015.2,0.28212655]
[1772153823018,0.5009934,2015.6,2015.2,0.28212655]
[1772153823223,0.4999934,2015.5,2014.7,0.28212655]
[1772153823520,0.4999934,2015.3,2014.6,0.0011]
[1772153823716,0.4999934,2015.2,2014.6,0.0011]
[1772153823891,0.4999934,2015.2,2014.6,0.28322655]
[1772153824622,1.74062661,2015.1,2015.0,0.0011]
[1772153825318,1.74062661,2015.1,2014.8,0.0011]
[1772153827423,0.4999934,2015.0,2014.8,0.0011]
[1772153829022,1.74071998,2015.0,2014.8,0.0011]
[1772153830022,1.24072658,2015.0,2014.8,0.0011]
[1772153830822,1.24052064,2015.3,2014.8,0.28322655]
[1772153831021,0.49066081,2015.3,2014.8,0.28322655]
[1772153831827,0.49166081,2015.4,2014.8,0.0011]
[1772153832031,0.95668427,2014.9,2014.6,0.0011]
[1772153832222,0.49066081,2014.9,2014.6,0.0011]
[1772153833934,1.24081794,2014.8,2014.6,0.0011]
[1772153835723,1.73147875,2014.8,2014.6,0.0011]
[1772153837230,1.24080345,2014.9,2014.6,0.0011]
[1772153837537,1.24080345,2014.9,2014.6,0.28322655]
[1772153838228,1.24066153,2015.1,2014.6,0.28322655]
[1772153839741,1.73132234,2015.1,2014.6,0.28322655]
[1772153840839,0.49066081,2015.0,2014.6,0.0011]
[1772153842445,0.49066081,2014.8,2014.6,0.0011]
[1772153846153,1.73154034,2014.7,2014.6,0.0011]
[1772153846845,0.49066081,2014.6,2014.4,0.0011]
[1772153847043,0.49066081,2014.6,2014.2,0.0011]
[1772153848450,0.49066081,2014.4,2014.2,0.0011]
[1772153849724,0.49066081,2014.4,2014.3,0.0011]
[1772153851252,0.49066081,2014.4,2013.9,0.28432655]
[1772153851253,1.24112594,2014.3,2013.9,0.28432655]
[1772153851845,1.73178675,2014.3,2013.9,0.28432655]
[1772153853153,1.73175097,2014.4,2013.9,0.28432655]
[1772153853341,1.24109016,2014.4,2013.9,0.28432655]
[1772153854556,1.73175097,2014.4,2013.9,0.28432655]
[1772153854764,0.46702346,2014.7,2014.2,0.28322655]
[1772153854765,1.24188762,2014.7,2014.2,0.28322655]
[1772153854930,1.24188816,2014.7,2014.2,0.28322655]
[1772153855257,0.001,2014.7,2014.2,0.28322655]
[1772153855653,0.001,2014.7,2014.3,0.28322655]
[1772153856228,0.49166081,2014.7,2014.1,0.28322655]
[1772153856445,0.49166081,2014.7,2014.1,1.52446967]
[1772153856659,0.001,2014.7,2014.2,0.28322655]
[1772153857232,1.24187953,2014.7,2014.2,0.28322655]
[1772153857567,0.001,2014.7,2014.3,0.28322655]
[1772153858839,0.001,2014.7,2014.4,0.28322655]
[1772153860457,0.001,2014.7,2014.5,0.28322655]
[1772153860665,1.24066146,2015.1,2014.6,0.28222655]
[1772153860961,5.45285978,2015.2,2014.6,0.28222655]
[1772153860962,1.73116446,2015.2,2014.6,0.28222655]
[1772153861344,1.73116446,2015.2,2014.8,0.28222655]
[1772153861345,0.49054563,2015.2,2014.8,0.28222655]
[1772153861664,2.26754563,2015.4,2014.8,0.28222655]
[1772153861965,2.26754563,2015.4,2015.1,0.28222655]
[1772153861966,0.001,2015.4,2015.1,0.28222655]
[1772153862647,0.001,2015.4,2015.1,1.52282672]
[1772153862855,0.49154563,2015.4,2014.9,2.54675636]
[1772153863047,0.001,2015.4,2015.0,0.28222655]
[1772153864771,0.001,2015.4,2015.1,1.52285976]
[1772153865362,0.001,2015.4,2015.0,1.24069322]
[1772153865537,0.001,2015.4,2015.0,1.52291977]
[1772153866455,0.001,2015.4,2015.1,0.28222655]
[1772153866854,0.001,2015.4,2015.2,1.98880764]
[1772153867567,0.001,2015.6,2015.3,0.28222655]
[1772153869075,0.001,2015.6,2015.4,0.28222655]
[1772153869240,1.73066585,2016.0,2015.5,0.28222655]
[1772153869866,0.49054563,2015.9,2015.5,0.28222655]
[1772153870040,0.49054563,2015.9,2015.4,0.46602346]
[1772153870538,0.49054563,2015.9,2015.4,0.74825001]
[1772153871266,1.73074424,2015.9,2015.4,0.74825001]
[1772153871462,0.49054563,2015.9,2015.4,1.9886939]
[1772153871670,1.73069138,2015.9,2015.5,0.28222655]
[1772153873371,1.73069138,2015.9,2015.5,0.28332655]
[1772153873662,0.001,2015.7,2015.5,0.28332655]
[1772153875062,0.001,2015.7,2015.5,1.52370472]
[1772153875270,0.49054563,2016.1,2015.7,0.28122655]
[1772153875575,0.49054563,2016.2,2015.8,0.28122655]
[1772153875772,0.49054563,2016.2,2015.6,1.7063083]
[1772153875981,0.49054563,2016.2,2015.6,1.70634756]
[1772153876274,0.49054563,2016.2,2015.6,1.98757411]
[1772153876677,0.49054563,2016.2,2015.7,0.28122655]
[1772153877677,1.73053676,2016.2,2015.7,1.52147763]
[1772153877879,1.73053676,2016.2,2015.7,1.52148825]
[1772153879279,1.73053676,2016.2,2015.7,0.59160094]
[1772153879976,0.49054563,2016.1,2015.5,0.0011]
[1772153880177,0.49054563,2016.1,2015.5,1.55185719]
[1772153880552,0.49054563,2016.1,2015.5,1.83308374]
[1772153881078,0.49054563,2016.1,2015.5,0.59270094]
[1772153882079,1.73062499,2016.0,2015.5,1.83308437]
[1772153883276,0.49054563,2016.0,2015.6,0.28122655]
[1772153884973,0.49054563,2015.9,2015.5,1.55185782]
[1772153885278,0.49054563,2015.9,2015.5,1.83308437]
[1772153886176,0.001,2015.8,2015.5,1.83308437]
[1772153888984,0.001,2015.8,2015.6,0.28122655]
[1772153891090,0.45462657,2016.2,2015.8,0.28022655]
[1772153892687,0.5,2016.0,2015.5,0.0011]
[1772153893007,0.5,2015.8,2015.5,0.0011]
[1772153894967,1.24026392,2015.7,2015.5,0.0011]
[1772153895184,0.5,2015.6,2015.5,0.0011]
[1772153895859,3.51112286,2016.0,2015.5,0.31147439]
[1772153896264,0.5,2015.9,2015.5,0.31147439]
[1772153897092,1.7402024,2015.8,2015.5,0.0011]
[1772153897262,0.5,2015.8,2015.5,0.0011]
[1772153897791,0.5,2015.8,2015.7,0.0011]
[1772153897982,0.501,2015.8,2015.7,0.0011]
[1772153900796,1.7412024,2015.8,2015.7,0.0011]
[1772153905794,0.501,2015.8,2015.7,0.0011]
[1772153906179,1.7412024,2015.8,2015.7,0.0011]
[1772153907697,0.001,2015.8,2015.7,0.0011]
[1772153911302,0.501,2015.8,2015.7,0.0011]
[1772153912398,0.001,2015.8,2015.7,0.0011]
[1772153913699,0.50045,2015.8,2015.5,0.0011]
[1772153914498,0.49945,2015.6,2015.5,0.0011]
[1772153917109,1.73977546,2015.6,2015.5,0.0011]
[1772153918997,0.49945,2015.6,2015.5,0.0011]
[1772153919501,1.73977546,2015.6,2015.5,0.0011]
[1772153921790,0.49945,2015.6,2015.5,0.0011]
[1772153922392,1.74077546,2015.6,2015.5,0.0011]
[1772153925411,0.50045,2015.6,2015.5,0.0011]
[1772153926823,0.001,2015.6,2015.5,0.0011]
[1772153926996,0.001,2015.6,2015.5,0.0022]
[1772153927199,0.001,2015.8,2015.5,0.0011]
[1772153929116,0.001,2015.8,2015.7,0.31037439]
[1772153929413,0.001,2015.8,2015.5,0.31147439]
[1772153933923,0.001,2015.8,2015.5,1.55185784]
[1772153934919,0.001,2015.8,2015.7,0.0011]
[1772153939621,1.74003933,2016.0,2015.7,0.0011]
[1772153939927,4.96059442,2016.3,2015.7,0.0011]
[1772153939928,0.001,2016.3,2015.9,0.46562719]
[1772153940407,1.73982664,2016.4,2015.7,0.0011]
[1772153940408,0.49995,2016.4,2016.1,0.46562719]
[1772153941118,2.29595,2016.7,2016.1,0.46562719]
[1772153941325,0.001,2016.8,2016.6,0.46562719]
[1772153941531,0.001,2016.8,2016.4,0.46562719]
[1772153941834,0.50095,2016.8,2016.4,0.46562719]
[1772153943126,0.49995,2016.9,2016.6,0.46562719]
[1772153943300,0.45952307,2017.1,2016.7,0.47067802]
[1772153943503,1.69878841,2017.4,2017.0,0.47067802]
[1772153943737,1.69877377,2017.4,2017.0,0.47067802]
[1772153944328,1.2392507,2017.4,2017.0,0.47067802]
[1772153945210,1.69877377,2017.4,2017.0,0.47067802]
[1772153946241,0.45952307,2017.2,2016.5,0.47067802]
[1772153946526,0.001,2016.6,2016.3,0.47067802]
[1772153947306,0.45952307,2017.0,2016.5,0.47067802]
[1772153948041,0.45952307,2017.0,2016.4,0.46562719]
[1772153948244,0.45952307,2016.8,2016.4,0.46562719]
[1772153948440,0.45952307,2016.8,2016.4,0.93630521]
[1772153949444,0.45952307,2016.8,2016.4,0.47067802]
[1772153949944,0.45952307,2016.8,2015.9,0.45451516]
[1772153950143,0.45952307,2016.8,2016.1,0.92014235]
[1772153950349,0.47535996,2016.6,2016.1,0.46562719]
[1772153951061,0.47535996,2016.6,2016.1,0.92014235]
[1772153952564,1.23977188,2016.5,2016.1,0.92014235]
[1772153953663,1.23977188,2016.5,2016.2,0.45451516]
[1772153956847,1.71513184,2016.5,2016.2,0.45451516]
[1772153957042,1.71513184,2016.5,2016.0,0.45451516]
[1772153958166,1.71513184,2016.5,2016.4,0.0011]
[1772153960555,0.47535996,2016.5,2016.4,0.0011]
[1772153960763,1.23973141,2016.6,2016.4,0.0011]
[1772153969184,1.23973141,2016.6,2015.7,0.04773484]
[1772153969185,0.47535996,2016.5,2015.7,0.04773484]
[1772153969773,0.47668258,2016.4,2015.7,0.04773484]
[1772153969975,0.94230977,2016.4,2015.7,0.04773484]
[1772153970163,0.47668258,2016.3,2015.7,1.28799621]
[1772153970363,0.47668258,2016.3,2015.8,0.04663484]
[1772153971047,0.47668258,2016.3,2016.2,0.0011]
[1772153971356,1.71663893,2016.2,2015.8,0.04663484]
[1772153971554,1.71663893,2016.2,2016.0,0.0011]
[1772153974273,1.23995635,2016.2,2016.0,0.0011]
[1772153974453,0.47668258,2016.1,2016.0,0.0011]
[1772153976783,0.47613258,2016.0,2015.7,0.0011]
[1772153976955,1.24001785,2016.1,2015.7,0.04883484]
[1772153977156,1.71607335,2016.3,2015.9,0.04773484]
[1772153977784,0.48183144,2016.2,2015.9,0.04773484]
[1772153979786,5.4365779,2016.4,2015.9,0.04773484]
[1772153980375,0.001,2016.7,2016.4,0.04773484]
[1772153980583,0.001,2016.7,2016.5,0.04773484]
[1772153981081,1.24064895,2016.7,2016.5,0.04773484]
[1772153981381,1.2406533,2016.7,2016.5,0.04773484]
[1772153981980,0.001,2016.7,2016.5,0.04773484]
[1772153983581,0.001,2016.7,2016.3,0.04773484]
[1772153983788,0.47713258,2016.7,2016.3,0.04773484]
[1772153983962,0.001,2016.5,2016.3,0.04773484]
[1772153985594,0.001,2016.5,2016.3,1.23986469]
[1772153985769,0.001,2016.5,2016.4,0.04773484]
[1772153990969,0.001,2016.7,2016.3,5.00727966]
[1772153991174,1.71552352,2017.2,2016.7,0.04773484]
[1772153991381,1.23933081,2017.3,2016.8,0.04773484]
[1772153991885,1.71546339,2017.3,2016.8,0.04773484]
[1772153992195,1.71546339,2017.3,2016.7,1.35573484]
[1772153992196,0.47613258,2017.2,2016.7,1.35573484]
[1772153993493,0.47613258,2017.0,2016.6,1.308]
[1772153994890,0.47613258,2017.0,2016.6,1.35573484]
[1772153995092,1.2394031,2017.1,2016.7,0.04773484]
[1772153995469,1.71553568,2017.1,2016.7,0.04773484]
[1772153996574,0.001,2016.9,2016.7,0.04773484]
[1772154000493,1.71541345,2017.3,2016.8,0.04773484]
[1772154000674,0.47613258,2017.3,2016.8,0.04773484]
[1772154000870,0.47613258,2017.8,2017.1,0.46501535]
[1772154001073,0.47613258,2017.8,2017.4,0.04773484]
[1772154001601,1.71502849,2018.0,2017.5,0.04773484]
[1772154001895,1.71502849,2018.0,2017.2,1.31]
[1772154001896,0.78603287,2017.6,2017.2,1.31]
[1772154002101,0.47613258,2017.5,2017.1,0.04773484]
[1772154002282,0.47613258,2017.5,2017.2,1.309]
[1772154002479,0.47613258,2017.2,2016.8,1.309]
[1772154003901,0.47613258,2017.2,2016.8,1.35673484]
[1772154004106,0.47613258,2017.1,2016.8,1.35673484]
[1772154004274,2.02535924,2017.3,2016.8,1.35673484]
[1772154004601,0.47613258,2017.2,2016.8,1.309]
[1772154004898,0.47613258,2017.2,2016.8,1.35673484]
[1772154005104,0.47613258,2017.2,2016.8,2.59632158]
[1772154005571,1.23932637,2017.3,2016.9,0.04773484]
[1772154005898,0.47613258,2017.4,2016.9,0.04773484]
[1772154006101,1.71536308,2017.4,2017.0,0.04773484]
[1772154006538,0.47613258,2017.3,2017.0,0.04773484]
[1772154006680,0.47613258,2017.3,2016.9,1.23952552]
[1772154006880,0.47613258,2017.3,2016.9,0.04773484]
[1772154008189,0.47613258,2017.2,2016.9,0.04773484]
[1772154008506,0.47613258,2017.2,2017.0,0.0011]
[1772154008693,0.001,2017.1,2017.0,0.04883484]
[1772154009676,1.23926702,2017.4,2017.0,0.04883484]
[1772154009677,1.72738697,2017.5,2017.0,0.04883484]
[1772154009908,0.48817746,2017.7,2017.3,0.04673484]
[1772154010097,1.23901106,2017.8,2017.3,0.04673484]
[1772154010285,1.72718852,2017.8,2017.3,0.04673484]
[1772154010486,1.72718852,2017.8,2017.3,1.28601282]
[1772154010710,1.72718852,2017.8,2017.4,0.04673484]
[1772154011213,0.48817746,2018.1,2017.5,0.04673484]
[1772154011509,0.48817746,2018.0,2017.6,1.311]
[1772154012202,1.72706119,2018.0,2017.6,1.311]
[1772154012402,1.72706119,2018.0,2017.6,1.35773484]
[1772154013010,0.48817746,2018.0,2017.6,2.59682505]
[1772154013210,1.72703235,2018.0,2017.6,1.35773484]
[1772154013413,0.48817746,2017.9,2017.2,1.35673484]
[1772154013594,0.48817746,2017.8,2017.2,1.35673484]
[1772154014715,1.23903454,2017.7,2017.2,1.35673484]
[1772154014884,1.727212,2017.7,2017.2,1.35673484]
[1772154015521,0.48817746,2017.6,2017.2,1.35673484]
[1772154016809,0.48817746,2017.5,2017.0,0.04783484]
[1772154017013,0.48817746,2017.5,2017.0,1.3111]
[1772154017510,0.48817746,2017.4,2017.0,0.0011]
[1772154018794,0.48817746,2017.2,2017.0,0.0011]
[1772154021121,0.001,2017.2,2017.0,0.0011]
[1772154021325,1.24035092,2017.2,2017.0,0.0011]
[1772154023395,0.001,2017.2,2017.0,0.0011]
[1772154024096,0.48917746,2017.2,2017.0,0.0011]
[1772154025124,0.48917746,2017.2,2016.8,0.0011]
[1772154025511,0.48817746,2017.0,2016.8,0.0011]
[1772154025716,0.48817746,2017.0,2016.6,0.0011]
[1772154026235,0.48817746,2017.0,2016.4,0.0011]
[1772154026915,1.72856566,2017.2,2016.4,1.2409068]
[1772154027102,1.72852533,2017.2,2016.6,0.04783484]
[1772154027297,0.48917746,2017.2,2016.6,0.04783484]
[1772154027499,0.48917746,2017.2,2016.8,0.04783484]
[1772154027827,0.001,2017.2,2016.8,0.04783484]
[1772154028124,1.24034295,2017.2,2016.8,0.04783484]
[1772154028319,0.001,2017.2,2016.8,0.04783484]
[1772154030137,0.001,2017.2,2016.9,0.04783484]
[1772154032232,0.001,2017.2,2017.0,0.04893484]
[1772154032421,0.48917746,2017.2,2017.0,0.0011]
[1772154034428,0.48917746,2017.2,2016.8,0.0011]
[1772154034429,1.72758056,2017.1,2016.8,0.0011]
[1772154034603,0.48817746,2017.1,2016.8,0.0011]
[1772154035837,1.24038432,2017.2,2016.8,0.05003484]
[1772154036140,1.72856178,2017.2,2016.8,0.05003484]
[1772154036310,0.48817746,2017.1,2016.8,0.05003484]
[1772154037339,1.72759601,2017.1,2016.8,0.0011]
[1772154038723,0.47553258,2017.0,2016.8,0.0011]
[1772154040716,1.71500649,2017.0,2016.8,0.0011]
[1772154040915,0.47553258,2017.0,2016.8,0.0011]
[1772154041334,1.71500164,2017.0,2016.8,0.0011]
[1772154042222,0.47553258,2016.9,2016.8,0.0011]
[1772154045054,0.47653258,2017.0,2016.8,0.0011]
[1772154045348,0.001,2017.0,2016.8,0.05003484]
[1772154045926,0.001,2017.0,2016.8,0.0011]
[1772154046642,0.47653258,2017.0,2016.8,0.0011]
[1772154047027,1.71599863,2017.0,2016.8,0.0011]
[1772154047324,0.47553258,2016.9,2016.8,0.0011]
[1772154047529,0.47553258,2016.9,2016.5,0.0011]
[1772154047746,0.47553258,2016.9,2016.2,0.0011]
[1772154050631,0.47498258,2016.7,2016.2,0.0011]
[1772154052831,0.47498258,2016.5,2016.2,0.0011]
[1772154053956,0.47498258,2016.5,2016.0,0.0011]
[1772154055049,0.47443258,2016.3,2016.0,0.0011]
[1772154055844,0.47443258,2016.6,2016.0,0.05223484]
[1772154056038,0.47443258,2016.6,2016.4,0.0011]
[1772154056244,0.47443258,2016.6,2016.0,0.0011]
[1772154056645,0.47443258,2016.6,2016.2,0.0011]
[1772154057172,0.47443258,2016.4,2016.0,0.0011]
[1772154059260,0.47443258,2016.2,2016.0,0.0011]
[1772154060343,0.47443258,2016.2,2015.7,0.05223484]
[1772154060541,0.47443258,2016.2,2015.5,0.05223484]
[1772154061263,0.47443258,2016.0,2015.5,0.05223484]
[1772154062659,0.47443258,2016.0,2015.3,0.0011]
[1772154062959,0.47443258,2016.0,2015.3,0.05333484]
[1772154063462,0.47388258,2015.8,2015.3,0.0011]
[1772154065745,1.7141465,2015.7,2015.3,0.0011]
[1772154065961,0.47388258,2015.6,2015.3,0.0011]
[1772154067272,0.47388258,2015.5,2015.0,0.0011]
[1772154067445,0.47388258,2015.5,2015.0,0.05333484]
[1772154067770,1.71433112,2015.4,2015.0,0.05333484]
[1772154067979,0.47388258,2015.3,2014.6,0.05223484]
[1772154069081,0.47388258,2015.3,2014.6,1.29316721]
[1772154069445,0.47388258,2015.3,2014.6,0.05223484]
[1772154069866,1.7231671,2015.2,2014.6,1.29317079]
[1772154070074,0.48259545,2015.1,2014.6,1.29317079]
[1772154071171,1.24057165,2015.2,2014.7,0.05333484]
[1772154071873,1.72314462,2015.3,2014.7,0.05333484]
[1772154072062,0.48259545,2015.5,2014.8,0.05333484]
[1772154072390,1.72285937,2015.7,2014.8,0.05333484]
[1772154073758,0.48259545,2015.6,2014.8,0.05333484]
[1772154073966,1.240387,2015.5,2014.9,1.24075636]
[1772154074147,1.240387,2015.5,2015.0,0.05333484]
[1772154076983,1.240387,2015.5,2015.0,1.29402736]
[1772154077154,1.240387,2015.5,2015.0,1.24069252]
[1772154077355,0.48259545,2015.4,2014.4,0.05333484]
[1772154078475,0.48259545,2015.2,2014.6,0.05333484]
[1772154079158,1.24051009,2015.3,2014.6,0.05333484]
[1772154080374,1.72310554,2015.3,2014.6,0.05333484]
[1772154080781,1.72310554,2015.3,2014.8,0.05333484]
[1772154081379,1.7230345,2015.5,2014.8,0.05333484]
[1772154081682,0.001,2015.8,2015.4,0.05333484]
[1772154081888,0.001,2015.8,2015.5,0.05333484]
[1772154083285,0.001,2015.8,2015.4,2.54239862]
[1772154083487,0.001,2015.8,2015.4,2.59573346]
[1772154085193,0.001,2015.8,2015.5,0.05333484]
[1772154087868,0.001,2015.8,2015.4,1.302]
[1772154088280,1.2412024,2015.8,2015.4,1.302]
[1772154088985,1.72379785,2015.8,2015.4,1.302]
[1772154089997,0.48359545,2015.8,2015.4,2.54244763]
[1772154090202,0.001,2015.8,2015.5,0.05333484]
[1772154090573,0.001,2015.8,2015.6,0.05333484]
[1772154091700,0.001,2015.8,2015.4,2.5957802]
[1772154092601,0.001,2015.6,2015.4,2.5957802]
[1772154092788,0.48359545,2015.6,2015.0,1.35833484]
[1772154094883,0.48259545,2015.4,2015.0,1.35833484]
[1772154095084,1.72298245,2015.5,2015.0,2.59902783]
[1772154095890,0.48259545,2015.5,2015.1,0.05333484]
[1772154097697,0.001,2015.6,2015.1,0.05333484]
[1772154097905,0.48297759,2015.6,2015.1,0.05333484]
[1772154100610,0.47414988,2015.4,2015.0,1.305]
[1772154100824,0.47414988,2015.4,2014.6,0.05443484]
[1772154100984,0.47414988,2015.4,2014.7,0.05333484]
[1772154101602,6.761548,2015.6,2014.9,0.05333484]
[1772154101603,1.71550636,2015.6,2014.9,0.05333484]
[1772154101789,1.71550636,2015.6,2015.0,0.05333484]
[1772154102184,0.47414988,2015.5,2014.9,1.307]
[1772154102594,0.47414988,2015.5,2014.9,1.36033484]
[1772154102806,1.24044854,2015.4,2014.9,1.36033484]
[1772154103709,1.71457637,2015.5,2015.0,0.05333484]
[1772154104213,1.71457637,2015.5,2015.2,0.0011]
[1772154104405,0.001,2015.4,2015.2,0.0011]
[1772154106802,0.47514988,2015.4,2015.2,0.0011]
[1772154107606,1.71565855,2015.4,2015.2,0.0011]
[1772154108111,1.71565855,2015.4,2015.0,0.0011]
[1772154108112,0.47414988,2015.3,2015.0,0.0011]
[1772154109203,0.47414988,2015.3,2014.6,0.0011]
[1772154109815,0.47414988,2015.1,2014.6,0.0011]
[1772154112219,0.47414988,2014.9,2014.6,0.0011]
[1772154116420,1.71490624,2014.9,2014.8,0.0011]
[1772154117518,0.47414988,2014.8,2014.6,0.0011]
[1772154117721,0.47414988,2014.8,2014.4,0.0011]
[1772154118621,0.47414988,2014.6,2014.4,0.0011]
[1772154118822,6.7684166,2015.2,2014.4,0.05663484]
[1772154118823,1.71478309,2015.1,2014.4,0.05663484]
[1772154119027,1.24063321,2015.1,2014.4,0.05663484]
[1772154119502,0.001,2015.2,2014.5,0.05553484]
[1772154119703,1.24157989,2015.2,2014.5,0.05553484]
[1772154120117,0.47414988,2015.1,2014.5,0.05553484]
[1772154121533,1.24069478,2015.0,2014.5,1.29653311]
[1772154123023,1.71484466,2015.0,2014.5,0.05553484]
[1772154123229,0.001,2015.2,2014.6,0.05553484]
[1772154123400,0.001,2015.2,2014.8,0.05553484]
[1772154123724,0.47514988,2015.2,2014.8,0.05553484]
[1772154124303,0.47514988,2015.2,2014.6,0.05553484]
[1772154125525,1.71478309,2015.1,2014.6,0.05553484]
[1772154125913,1.24063321,2015.1,2014.7,0.05553484]
[1772154126438,0.47414988,2015.0,2014.4,0.05663484]
[1772154126726,0.47414988,2015.0,2014.4,0.0011]
[1772154126913,0.47414988,2014.9,2014.4,0.0011]
[1772154127606,0.47414988,2014.7,2014.4,0.0011]
[1772154128824,0.47414988,2014.7,2014.6,0.0011]
[1772154129329,0.47414988,2014.7,2014.3,0.0011]
[1772154129818,1.24094112,2014.6,2014.3,0.0011]
[1772154130018,1.7131737,2014.6,2014.3,0.0011]
[1772154131828,0.47223258,2014.5,2014.3,0.0011]
[1772154134171,1.71326467,2014.5,2014.3,0.0011]
[1772154135310,0.47223258,2014.4,2014.3,0.0011]
[1772154137518,1.71329691,2014.4,2014.3,0.0011]
[1772154137726,0.47223258,2014.4,2014.3,0.0011]
[1772154137929,1.71329691,2014.4,2014.3,0.0011]
[1772154138253,0.47223258,2014.4,2014.3,0.0011]
[1772154138451,1.71329691,2014.4,2014.3,0.0011]
[1772154138649,0.47223258,2014.4,2014.3,0.0011]
[1772154139118,1.71329691,2014.4,2014.3,0.0011]
[1772154139933,0.47223258,2014.4,2014.3,0.0011]
[1772154140932,1.71329691,2014.4,2014.3,0.0011]
[1772154141129,0.47223258,2014.3,2014.0,0.0011]
[1772154142071,0.47168258,2014.1,2013.6,0.0011]
[1772154143236,0.47168258,2013.9,2013.6,0.0011]
[1772154144446,0.47168258,2013.9,2013.2,0.05773484]
[1772154144636,1.71297741,2014.1,2013.2,1.61248823]
[1772154144958,0.47168258,2014.0,2013.3,0.05663484]
[1772154145257,0.47168258,2013.8,2013.4,0.05663484]
[1772154147862,4.96510109,2014.1,2013.5,0.05663484]
[1772154148061,3.52693177,2014.2,2013.5,0.05663484]
[1772154148062,3.52691869,2014.2,2013.5,0.05663484]
[1772154148560,1.71291869,2014.2,2013.5,0.05663484]
[1772154148730,0.47168258,2014.2,2013.5,0.05663484]
[1772154148932,1.24115916,2014.3,2013.5,0.05663484]
[1772154149772,1.71284174,2014.3,2013.7,0.05663484]
[1772154150135,0.47168258,2014.2,2013.3,0.05663484]
[1772154151837,1.71293177,2014.1,2013.5,0.05663484]
[1772154153455,1.71293177,2014.1,2013.7,0.05773484]
[1772154154838,1.2422288,2014.2,2013.7,1.29922857]
[1772154155039,1.2422288,2014.2,2013.8,0.05663484]
[1772154158670,1.71391138,2014.2,2013.8,0.05663484]
[1772154159071,0.47168258,2014.1,2013.8,0.05663484]
[1772154159772,0.47168258,2014.1,2013.7,0.05773484]
[1772154160579,1.73176122,2014.0,2013.7,0.0011]
[1772154162785,1.73176122,2014.0,2013.7,0.05773484]
[1772154163272,0.4904504,2014.0,2013.7,0.05773484]
[1772154163478,1.24129863,2014.1,2013.7,0.05773484]
[1772154163685,5.45631647,2014.2,2013.7,0.05773484]
[1772154163686,0.001,2014.2,2013.8,0.05663484]
[1772154163974,1.24103544,2014.5,2014.0,0.05563484]
[1772154164349,1.73148584,2014.5,2014.0,0.05563484]
[1772154164876,0.001,2014.8,2014.1,0.05563484]
[1772154165060,1.73132993,2014.7,2014.1,0.05563484]
[1772154165571,0.001,2014.3,2014.1,0.05563484]
[1772154167275,0.001,2014.3,2014.2,0.05563484]
[1772154167780,0.4914504,2014.3,2013.8,1.29706003]
[1772154168084,0.4914504,2014.3,2013.7,0.0011]
[1772154168387,0.4904504,2014.1,2013.7,0.0011]
[1772154169486,1.73176122,2014.0,2013.7,0.0011]
[1772154170266,0.4904504,2013.9,2013.7,0.0011]
[1772154171699,1.73186402,2013.9,2013.7,0.0011]
[1772154173865,4.96538869,2014.0,2013.7,0.0011]
[1772154173866,1.816,2014.2,2013.7,0.05673484]
[1772154174058,1.73260703,2014.3,2013.7,0.05673484]
[1772154174259,0.4904504,2014.2,2013.7,0.05673484]
[1772154176185,1.24122769,2014.2,2013.7,1.29822241]
[1772154176391,0.4904504,2014.1,2013.7,1.29822609]
[1772154176690,0.4904504,2014.1,2013.7,1.24259125]
[1772154176987,0.4904504,2014.1,2013.7,1.2425928]
[1772154177199,0.4904504,2014.1,2013.9,0.0011]
[1772154177495,0.4914504,2014.1,2013.9,0.0011]
[1772154178194,0.001,2014.1,2013.9,0.05673484]
[1772154180102,0.001,2014.1,2013.9,0.0011]
[1772154180974,0.001,2014.3,2014.1,1.29688403]
[1772154181291,0.4904504,2014.7,2014.0,0.05563484]
[1772154183196,0.4904504,2014.7,2014.0,1.29692298]
[1772154183197,0.4904504,2014.5,2014.0,1.29692298]
[1772154183797,0.4904504,2014.5,2014.1,0.05563484]
[1772154185278,0.4904504,2014.5,2014.2,1.24118756]
[1772154187405,4.96439317,2014.8,2014.3,0.05563484]
[1772154187406,0.4914504,2014.8,2014.3,0.05563484]
[1772154187779,0.001,2014.8,2014.4,0.05563484]
[1772154188494,0.4914504,2014.8,2014.4,0.05563484]
[1772154188802,0.4914504,2014.8,2014.3,1.296]
[1772154189501,0.001,2014.5,2014.3,1.296]
[1772154189701,0.001,2014.5,2014.3,1.35163484]
[1772154189895,0.001,2014.8,2014.4,0.05563484]
[1772154191897,0.001,2014.8,2014.4,1.29666197]
[1772154194903,0.001,2014.8,2014.5,0.05563484]
[1772154195326,1.71283171,2015.1,2014.7,0.05563484]
[1772154195620,0.47218258,2015.0,2014.5,0.52181033]
[1772154197907,0.47218258,2015.0,2014.6,1.24094112]
[1772154199284,0.47218258,2014.9,2014.3,2.59270778]
[1772154199484,0.47218258,2014.9,2014.4,0.05563484]
[1772154199889,0.47218258,2014.9,2014.3,1.296]
[1772154200105,0.47218258,2014.7,2014.2,1.35773484]
[1772154200305,0.47218258,2014.7,2014.2,2.59891629]
[1772154200517,0.47218258,2014.7,2014.2,1.3021]
[1772154201075,0.47218258,2014.7,2014.2,0.0011]
[1772154202003,0.47218258,2014.5,2014.2,0.0011]
[1772154203410,0.47218258,2014.7,2014.3,0.05563484]
[1772154204793,1.71310989,2014.7,2014.3,0.05563484]
[1772154205712,1.24092731,2014.7,2014.3,0.05563484]
[1772154205910,0.47218258,2014.6,2014.3,0.05563484]
[1772154206687,1.71313009,2014.6,2014.3,0.05563484]
[1772154206916,0.47218258,2014.5,2014.2,0.0011]
[1772154207329,0.46617549,2014.3,2014.0,0.0011]
[1772154207493,0.47163258,2014.2,2013.7,0.0011]
[1772154209119,1.24124919,2014.1,2013.3,0.79297343]
[1772154209294,0.47163258,2014.0,2013.3,0.79297343]
[1772154211795,0.47163258,2014.1,2013.4,0.05673484]
[1772154212023,0.47163258,2014.0,2013.4,0.05673484]
[1772154213736,0.47163258,2014.0,2013.5,0.0011]
[1772154214034,1.71299475,2014.0,2013.5,0.05783484]
[1772154215235,0.47163258,2013.9,2013.5,0.05783484]
[1772154216038,0.47163258,2013.9,2013.5,1.29942824]
[1772154217434,1.71301028,2013.9,2013.5,0.05783484]
[1772154218644,1.71301028,2013.9,2013.5,0.0011]